OrganisationNameLabel,OrganisationURI,EffectiveDate,PaymentDate,Directorate/ServiceWhereExpenditureIncurred,ServiceCategoryLabel,ServiceCategoryURI,Supplier,NetAmount,IrrecoverableVAT,PurposeOfExpenditure,ProcurementClassification:ProclassLabel,ProcrementClassification:ProClassCode
South Lakeland District Council,http://opendatacommunities.org/id/district-council/south-lakeland,30/11/2014,13/08/2014,Economic Development,Cultural Environmental Regulatory & Planning Services,http://opendatacommunities.org/def/concept/finance/sercop/objective/104,Amazon,12.99,0,Camera case Canon EOS 1100D,Environmental Services,180000
South Lakeland District Council,http://opendatacommunities.org/id/district-council/south-lakeland,30/11/2014,13/08/2014,Economic Development,Cultural Environmental Regulatory & Planning Services,http://opendatacommunities.org/def/concept/finance/sercop/objective/104,Amazon,14.13,0,MaxRam 32GB Class 10 SDHC memory card,Environmental Services,180000
South Lakeland District Council,http://opendatacommunities.org/id/district-council/south-lakeland,30/11/2014,14/08/2014,Customer Services,Central Services,http://opendatacommunities.org/def/concept/finance/sercop/objective/102,Commercial,22.82,0,Stationery,Stationery,340000
South Lakeland District Council,http://opendatacommunities.org/id/district-council/south-lakeland,30/11/2014,14/08/2014,Customer Services,Central Services,http://opendatacommunities.org/def/concept/finance/sercop/objective/102,Commercial,184.14,0,Stationery,Stationery,340000
South Lakeland District Council,http://opendatacommunities.org/id/district-council/south-lakeland,30/11/2014,14/08/2014,Offices,Central Services,http://opendatacommunities.org/def/concept/finance/sercop/objective/102,Posturite,14.95,0,Back rest,Highway Equipment & Materials,230000
South Lakeland District Council,http://opendatacommunities.org/id/district-council/south-lakeland,30/11/2014,15/08/2014,Homelessness,Housing Services,http://opendatacommunities.org/def/concept/finance/sercop/objective/108,Hallgarth Post Office,20.50,0,Payment for electric meter,Social Community Care Supplies & Services,410000
South Lakeland District Council,http://opendatacommunities.org/id/district-council/south-lakeland,30/11/2014,15/08/2014,Human Resources,Central Services,http://opendatacommunities.org/def/concept/finance/sercop/objective/102,Travelodge,30.00,0,Accomodation,Education,170000
South Lakeland District Council,http://opendatacommunities.org/id/district-council/south-lakeland,30/11/2014,18/08/2014,Discretionary Housing Benefit,Housing Services,http://opendatacommunities.org/def/concept/finance/sercop/objective/108,The Sign Man,24.00,0,Visiting coats SLDC logo x3,Clothing,140000
South Lakeland District Council,http://opendatacommunities.org/id/district-council/south-lakeland,30/11/2014,18/08/2014,Community Services,Central Services,http://opendatacommunities.org/def/concept/finance/sercop/objective/102,CIEH,40.00,0,Training course,Education,170000
South Lakeland District Council,http://opendatacommunities.org/id/district-council/south-lakeland,30/11/2014,19/08/2014,ICT Group,Central Services,http://opendatacommunities.org/def/concept/finance/sercop/objective/102,Amazon,14.90,0,CAT 5 cables ,Information Communication Technology,270000
South Lakeland District Council,http://opendatacommunities.org/id/district-council/south-lakeland,30/11/2014,19/08/2014,Human Resources,Central Services,http://opendatacommunities.org/def/concept/finance/sercop/objective/102,Booths,11.86,0,IIP Hospitality,Catering,110000
South Lakeland District Council,http://opendatacommunities.org/id/district-council/south-lakeland,30/11/2014,21/08/2014,Car Park Enforcement,Highways & Transport Services,http://opendatacommunities.org/def/concept/finance/sercop/objective/107,John Wilding,34.50,0,Repair blown fuse replace & check,Highway Equipment & Materials,230000
South Lakeland District Council,http://opendatacommunities.org/id/district-council/south-lakeland,30/11/2014,22/08/2014,Customer Services,Central Services,http://opendatacommunities.org/def/concept/finance/sercop/objective/102,The World Centre,24.85,0,Training  ,Stationery,340000
South Lakeland District Council,http://opendatacommunities.org/id/district-council/south-lakeland,30/11/2014,22/08/2014,Customer Services,Central Services,http://opendatacommunities.org/def/concept/finance/sercop/objective/102,Amazon,3.98,0,Stationery,Stationery,340000
South Lakeland District Council,http://opendatacommunities.org/id/district-council/south-lakeland,30/11/2014,22/08/2014,Ulverston Market Hall,External Trading Accounts,http://opendatacommunities.org/def/concept/finance/sercop/objective/,FED Media,100.00,0,Advertising services,Facilities & Management Services,190000
South Lakeland District Council,http://opendatacommunities.org/id/district-council/south-lakeland,30/11/2014,26/08/2014,Offices,Central Services,http://opendatacommunities.org/def/concept/finance/sercop/objective/102,Boyes,2.50,0,Cleaning products,Cleaning & Janitorial,130000
South Lakeland District Council,http://opendatacommunities.org/id/district-council/south-lakeland,30/11/2014,26/08/2014,Human Resources,Central Services,http://opendatacommunities.org/def/concept/finance/sercop/objective/102,Virgin Trains,246.00,0,Rail,Health & Safety,220000
South Lakeland District Council,http://opendatacommunities.org/id/district-council/south-lakeland,30/11/2014,27/08/2014,ICT Group,Central Services,http://opendatacommunities.org/def/concept/finance/sercop/objective/102,Amazon,10.90,0,Router,Information Communication Technology,270000
South Lakeland District Council,http://opendatacommunities.org/id/district-council/south-lakeland,30/11/2014,27/08/2014,Homelessness,Housing Services,http://opendatacommunities.org/def/concept/finance/sercop/objective/108,Right to Work,25.00,0,Furniture removal (social lettings),Social Community Care Supplies & Services,410000
South Lakeland District Council,http://opendatacommunities.org/id/district-council/south-lakeland,30/11/2014,28/08/2014,Customer Services,Central Services,http://opendatacommunities.org/def/concept/finance/sercop/objective/102,Commercial,58.87,0,Stationery,Stationery,340000
South Lakeland District Council,http://opendatacommunities.org/id/district-council/south-lakeland,30/11/2014,28/08/2014,Customer Services,Central Services,http://opendatacommunities.org/def/concept/finance/sercop/objective/102,Commercial,65.04,0,Stationery,Stationery,340000
South Lakeland District Council,http://opendatacommunities.org/id/district-council/south-lakeland,30/11/2014,29/08/2014,ICT Group,Central Services,http://opendatacommunities.org/def/concept/finance/sercop/objective/102,Trainline,80.48,0,Train tickets  ,Education,170000
South Lakeland District Council,http://opendatacommunities.org/id/district-council/south-lakeland,30/11/2014,29/08/2014,Kendal Town Hall,Cultural Environmental Regulatory & Planning Services,http://opendatacommunities.org/def/concept/finance/sercop/objective/104,System Hygeine,90.19,0,Floor cleaning products,Highway Equipment & Materials,230000
South Lakeland District Council,http://opendatacommunities.org/id/district-council/south-lakeland,30/11/2014,29/08/2014,Kendal Town Hall,Cultural Environmental Regulatory & Planning Services,http://opendatacommunities.org/def/concept/finance/sercop/objective/104,Boyes,2.92,0,Brushes,Highway Equipment & Materials,230000
South Lakeland District Council,http://opendatacommunities.org/id/district-council/south-lakeland,30/11/2014,31/08/2014,Kendal Town Hall,Cultural Environmental Regulatory & Planning Services,http://opendatacommunities.org/def/concept/finance/sercop/objective/104,Boyes,6.40,0,Burn plaster kit,Highway Equipment & Materials,230000
South Lakeland District Council,http://opendatacommunities.org/id/district-council/south-lakeland,30/11/2014,02/09/2014,Town View Field Hostel,Housing Services,http://opendatacommunities.org/def/concept/finance/sercop/objective/108,Right to Work,41.00,0,Collection of old furniture,Cleaning & Janitorial,130000
South Lakeland District Council,http://opendatacommunities.org/id/district-council/south-lakeland,30/11/2014,02/09/2014,Customer Services,Central Services,http://opendatacommunities.org/def/concept/finance/sercop/objective/102,Rotadex,117.60,0,Stationery,Stationery,340000
South Lakeland District Council,http://opendatacommunities.org/id/district-council/south-lakeland,30/11/2014,02/09/2014,Car Parks,Highways & Transport Services,http://opendatacommunities.org/def/concept/finance/sercop/objective/107,Sports Direct,52.97,0,1 pair safety boots & 2 pr work trousers,Clothing,140000
South Lakeland District Council,http://opendatacommunities.org/id/district-council/south-lakeland,30/11/2014,03/09/2014,Transport,Cultural Environmental Regulatory & Planning Services,http://opendatacommunities.org/def/concept/finance/sercop/objective/104,Boyes,33.33,0,Bags,Highway Equipment & Materials,230000
South Lakeland District Council,http://opendatacommunities.org/id/district-council/south-lakeland,30/11/2014,03/09/2014,Transport,Cultural Environmental Regulatory & Planning Services,http://opendatacommunities.org/def/concept/finance/sercop/objective/104,VOSA,250.00,0,Vehicle testing fees,Vehicle Management,380000
South Lakeland District Council,http://opendatacommunities.org/id/district-council/south-lakeland,30/11/2014,08/09/2014,Coronation Hall,Cultural Environmental Regulatory & Planning Services,http://opendatacommunities.org/def/concept/finance/sercop/objective/104,Martin McColl,45.60,0,Coro papers,Stationery,340000
South Lakeland District Council,http://opendatacommunities.org/id/district-council/south-lakeland,30/11/2014,08/09/2014,Coronation Hall,Cultural Environmental Regulatory & Planning Services,http://opendatacommunities.org/def/concept/finance/sercop/objective/104,Croftlands,67.10,0,Laundry,Highway Equipment & Materials,230000
South Lakeland District Council,http://opendatacommunities.org/id/district-council/south-lakeland,30/11/2014,10/09/2014,Financial Services,Central Services,http://opendatacommunities.org/def/concept/finance/sercop/objective/102,West Coat Trains,29.00,0,Train tickets to Penrith ,Public Transport,360000
South Lakeland District Council,http://opendatacommunities.org/id/district-council/south-lakeland,30/11/2014,10/09/2014,Town View Field Hostel,Housing Services,http://opendatacommunities.org/def/concept/finance/sercop/objective/108,Amazon,4.42,0,2 x galvanised cleat hooks,Domestic Goods,160000
South Lakeland District Council,http://opendatacommunities.org/id/district-council/south-lakeland,30/11/2014,10/09/2014,Town View Field Hostel,Housing Services,http://opendatacommunities.org/def/concept/finance/sercop/objective/108,Amazon,9.16,0,Retractable outdoor clothes line,Domestic Goods,160000
South Lakeland District Council,http://opendatacommunities.org/id/district-council/south-lakeland,30/11/2014,10/09/2014,Community Services,Central Services,http://opendatacommunities.org/def/concept/finance/sercop/objective/102,Trainline,97.92,0,Train tickets,Education,170000
South Lakeland District Council,http://opendatacommunities.org/id/district-council/south-lakeland,30/11/2014,10/09/2014,Research and Intelligence,Central Services,http://opendatacommunities.org/def/concept/finance/sercop/objective/102,Virgin Trains,71.70,0,Train Oxenholme-Birmingham,Public Transport,360000
South Lakeland District Council,http://opendatacommunities.org/id/district-council/south-lakeland,30/11/2014,10/09/2014,Research and Intelligence,Central Services,http://opendatacommunities.org/def/concept/finance/sercop/objective/102,Premier Inn,33.13,0,B&B 1 night,Public Transport,360000
South Lakeland District Council,http://opendatacommunities.org/id/district-council/south-lakeland,30/11/2014,11/09/2014,Revenues and Benefits,Central Services,http://opendatacommunities.org/def/concept/finance/sercop/objective/102,Gem UK,53.89,0,Envelope Sealing fluid,Stationery,340000
South Lakeland District Council,http://opendatacommunities.org/id/district-council/south-lakeland,30/11/2014,11/09/2014,Town View Field Hostel,Housing Services,http://opendatacommunities.org/def/concept/finance/sercop/objective/108,Amazon.co.uk,47.14,0,2x flip chart markers & coffee sticks,Domestic Goods,160000
South Lakeland District Council,http://opendatacommunities.org/id/district-council/south-lakeland,30/11/2014,11/09/2014,Housing Standards,Housing Services,http://opendatacommunities.org/def/concept/finance/sercop/objective/108,CIEH,80.00,0,Training Course,Education,170000
South Lakeland District Council,http://opendatacommunities.org/id/district-council/south-lakeland,30/11/2014,11/09/2014,Town View Field Hostel,Housing Services,http://opendatacommunities.org/def/concept/finance/sercop/objective/108,Amazon,16.58,0,2 x line props,Domestic Goods,160000
South Lakeland District Council,http://opendatacommunities.org/id/district-council/south-lakeland,30/11/2014,12/09/2014,Research and Intelligence,Central Services,http://opendatacommunities.org/def/concept/finance/sercop/objective/102,Virgin Rail,18.40,0,Train tickets  ,Public Transport,360000
South Lakeland District Council,http://opendatacommunities.org/id/district-council/south-lakeland,30/11/2014,12/09/2014,Town View Field Hostel,Housing Services,http://opendatacommunities.org/def/concept/finance/sercop/objective/108,Amazon.co.uk,29.98,0,Safety bathroom mirror,Domestic Goods,160000
South Lakeland District Council,http://opendatacommunities.org/id/district-council/south-lakeland,30/11/2014,15/09/2014,Kendal Depot,Transport,http://opendatacommunities.org/def/concept/finance/sercop/objective/107,Max Spielman,2.92,0,Photo Frame,Highway Equipment & Materials,230000
South Lakeland District Council,http://opendatacommunities.org/id/district-council/south-lakeland,30/11/2014,17/09/2014,Research and Intelligence,Central Services,http://opendatacommunities.org/def/concept/finance/sercop/objective/102,NW Trains,94.50,0,Train tickets - Oxe to London rtn,Public Transport,360000
South Lakeland District Council,http://opendatacommunities.org/id/district-council/south-lakeland,30/11/2014,17/09/2014,Research and Intelligence,Central Services,http://opendatacommunities.org/def/concept/finance/sercop/objective/102,NW Trains,16.00,0,Car parking - Ox station,Public Transport,360000
South Lakeland District Council,http://opendatacommunities.org/id/district-council/south-lakeland,30/11/2014,17/09/2014,Financial Services,Central Services,http://opendatacommunities.org/def/concept/finance/sercop/objective/102,AAT,117.00,0,AAT student membership,Education,170000
South Lakeland District Council,http://opendatacommunities.org/id/district-council/south-lakeland,30/11/2014,17/09/2014,Economic Development,Cultural Environmental Regulatory & Planning Services,http://opendatacommunities.org/def/concept/finance/sercop/objective/104,Expedia,217.50,0,Accom Dorset Shepherds Bush Hotel ,Environmental Services,180000
South Lakeland District Council,http://opendatacommunities.org/id/district-council/south-lakeland,30/11/2014,17/09/2014,Economic Development,Cultural Environmental Regulatory & Planning Services,http://opendatacommunities.org/def/concept/finance/sercop/objective/104,Expedia,127.50,0,Accom Dorset Shepherds Bush Hotel ,Environmental Services,180000
South Lakeland District Council,http://opendatacommunities.org/id/district-council/south-lakeland,30/11/2014,17/09/2014,Economic Development,Cultural Environmental Regulatory & Planning Services,http://opendatacommunities.org/def/concept/finance/sercop/objective/104,Expedia,217.50,0,Accom Dorset Shepherds Bush Hotel ,Environmental Services,180000
South Lakeland District Council,http://opendatacommunities.org/id/district-council/south-lakeland,30/11/2014,17/09/2014,Economic Development,Cultural Environmental Regulatory & Planning Services,http://opendatacommunities.org/def/concept/finance/sercop/objective/104,Expedia,180.00,0,Accom Dorset Shepherds Bush Hotel ,Environmental Services,180000
South Lakeland District Council,http://opendatacommunities.org/id/district-council/south-lakeland,30/11/2014,17/09/2014,Economic Development,Cultural Environmental Regulatory & Planning Services,http://opendatacommunities.org/def/concept/finance/sercop/objective/104,Expedia,180.00,0,Accom Dorset Shepherds Bush Hotel ,Environmental Services,180000
South Lakeland District Council,http://opendatacommunities.org/id/district-council/south-lakeland,30/11/2014,17/09/2014,Economic Development,Cultural Environmental Regulatory & Planning Services,http://opendatacommunities.org/def/concept/finance/sercop/objective/104,Expedia,90.00,0,Accom Dorset Shepherds Bush Hotel ,Environmental Services,180000
South Lakeland District Council,http://opendatacommunities.org/id/district-council/south-lakeland,30/11/2014,17/09/2014,Streetcare,Central Services,http://opendatacommunities.org/def/concept/finance/sercop/objective/102,NEC Parking,8.33,0,Parking,Human Resources,260000
South Lakeland District Council,http://opendatacommunities.org/id/district-council/south-lakeland,30/11/2014,17/09/2014,Streetcare,Central Services,http://opendatacommunities.org/def/concept/finance/sercop/objective/102,Asda,34.27,0,Fuel,Utilities,370000
South Lakeland District Council,http://opendatacommunities.org/id/district-council/south-lakeland,30/11/2014,17/09/2014,Streetcare,Central Services,http://opendatacommunities.org/def/concept/finance/sercop/objective/102,Midland Expressway,4.58,0,Road Tolls,Human Resources,260000
South Lakeland District Council,http://opendatacommunities.org/id/district-council/south-lakeland,30/11/2014,17/09/2014,Streetcare,Central Services,http://opendatacommunities.org/def/concept/finance/sercop/objective/102,Midland Expressway,4.58,0,Road Tolls,Human Resources,260000
South Lakeland District Council,http://opendatacommunities.org/id/district-council/south-lakeland,30/11/2014,17/09/2014,Streetcare,Central Services,http://opendatacommunities.org/def/concept/finance/sercop/objective/102,Pasty Presto,8.96,0,Sustenance,Human Resources,260000
South Lakeland District Council,http://opendatacommunities.org/id/district-council/south-lakeland,30/11/2014,17/09/2014,Cemeteries Office,Central Services,http://opendatacommunities.org/def/concept/finance/sercop/objective/102,Trainline,169.32,0,Train travel,Public Transport,360000
South Lakeland District Council,http://opendatacommunities.org/id/district-council/south-lakeland,30/11/2014,17/09/2014,Cemeteries Office,Central Services,http://opendatacommunities.org/def/concept/finance/sercop/objective/102,Carr Saunders Hall,55.00,0,Accomodation for training day,Education,170000
South Lakeland District Council,http://opendatacommunities.org/id/district-council/south-lakeland,30/11/2014,17/09/2014,Cemeteries Office,Central Services,http://opendatacommunities.org/def/concept/finance/sercop/objective/102,Carr Saunders Hall,55.00,0,Accomodation for training day,Education,170000
South Lakeland District Council,http://opendatacommunities.org/id/district-council/south-lakeland,30/11/2014,17/09/2014,Cemeteries Office,Central Services,http://opendatacommunities.org/def/concept/finance/sercop/objective/102,RSPH,350.00,0,Training ,Education,170000
South Lakeland District Council,http://opendatacommunities.org/id/district-council/south-lakeland,30/11/2014,18/09/2014,Financial Services,Central Services,http://opendatacommunities.org/def/concept/finance/sercop/objective/102,Kaplin Foulks Lynch,31.80,0,AAT study guide,Education,170000
South Lakeland District Council,http://opendatacommunities.org/id/district-council/south-lakeland,30/11/2014,18/09/2014,Asst Dir Resources,Central Services,http://opendatacommunities.org/def/concept/finance/sercop/objective/102,AG Gates Ltd,20.00,0,Train ticket Oxe-Carlisle,Public Transport,360000
South Lakeland District Council,http://opendatacommunities.org/id/district-council/south-lakeland,30/11/2014,18/09/2014,Homelessness,Housing Services,http://opendatacommunities.org/def/concept/finance/sercop/objective/108,Blue Star,35.00,0,Taxi Milland Park to SLH,Social Community Care Supplies & Services,410000
South Lakeland District Council,http://opendatacommunities.org/id/district-council/south-lakeland,30/11/2014,18/09/2014,Homelessness,Housing Services,http://opendatacommunities.org/def/concept/finance/sercop/objective/108,Blue Star,5.00,0,Taxi Town Hall to Town View Fields,Social Community Care Supplies & Services,410000
South Lakeland District Council,http://opendatacommunities.org/id/district-council/south-lakeland,30/11/2014,19/09/2014,Human Resources,Central Services,http://opendatacommunities.org/def/concept/finance/sercop/objective/102,Disclosure Scotland,25.00,0,Staff security apps 2014-15,Legal Services,280000
South Lakeland District Council,http://opendatacommunities.org/id/district-council/south-lakeland,30/11/2014,22/09/2014,Economic Development,Cultural Environmental Regulatory & Planning Services,http://opendatacommunities.org/def/concept/finance/sercop/objective/104,Expedia,360.00,0,Accom Dorset Shepherds Bush Hotel ,Environmental Services,180000
South Lakeland District Council,http://opendatacommunities.org/id/district-council/south-lakeland,30/11/2014,22/09/2014,Cemeteries Office,Central Services,http://opendatacommunities.org/def/concept/finance/sercop/objective/102,Companies House,11.00,0,Company info,Stationery,340000
South Lakeland District Council,http://opendatacommunities.org/id/district-council/south-lakeland,30/11/2014,22/09/2014,Cemeteries Office,Central Services,http://opendatacommunities.org/def/concept/finance/sercop/objective/102,Virgin Trains,103.40,0,Transport,Public Transport,360000
South Lakeland District Council,http://opendatacommunities.org/id/district-council/south-lakeland,30/11/2014,23/09/2014,Financial Services,Central Services,http://opendatacommunities.org/def/concept/finance/sercop/objective/102,The Trainline,39.07,0,Train Ticket Lancaster-Leeds,Education,170000
South Lakeland District Council,http://opendatacommunities.org/id/district-council/south-lakeland,30/11/2014,23/09/2014,Financial Services,Central Services,http://opendatacommunities.org/def/concept/finance/sercop/objective/102,Premier Inn,140.21,0,Accommodation - insurance training,Education,170000
South Lakeland District Council,http://opendatacommunities.org/id/district-council/south-lakeland,30/11/2014,23/09/2014,Cemeteries Office,Central Services,http://opendatacommunities.org/def/concept/finance/sercop/objective/102,CIEH,200.00,0,Training,Education,170000
South Lakeland District Council,http://opendatacommunities.org/id/district-council/south-lakeland,30/11/2014,24/09/2014,Homelessness,Housing Services,http://opendatacommunities.org/def/concept/finance/sercop/objective/108,Longhorn Hardware,6.95,0,New key cut for Social Letting Property,Social Community Care Supplies & Services,410000
South Lakeland District Council,http://opendatacommunities.org/id/district-council/south-lakeland,30/11/2014,25/09/2014,Revenues and Benefits,Central Services,http://opendatacommunities.org/def/concept/finance/sercop/objective/102,National Railway,29.10,0,Train Oxe - Man 30/9/14,Public Transport,360000
South Lakeland District Council,http://opendatacommunities.org/id/district-council/south-lakeland,30/11/2014,25/09/2014,Human Resources,Central Services,http://opendatacommunities.org/def/concept/finance/sercop/objective/102,Disclosure Scotland,25.00,0,DBS Check,Education,170000
South Lakeland District Council,http://opendatacommunities.org/id/district-council/south-lakeland,30/11/2014,25/09/2014,Human Resources,Central Services,http://opendatacommunities.org/def/concept/finance/sercop/objective/102,Virgin Rail Group,8.00,0,Car parking  ,Education,170000
South Lakeland District Council,http://opendatacommunities.org/id/district-council/south-lakeland,30/11/2014,26/09/2014,Economic Development,Cultural Environmental Regulatory & Planning Services,http://opendatacommunities.org/def/concept/finance/sercop/objective/104,Grasmere Gingerbread,115.95,0,Gingerbread samples for MIPIM event,Environmental Services,180000
South Lakeland District Council,http://opendatacommunities.org/id/district-council/south-lakeland,30/11/2014,26/09/2014,Kendal Depot,Transport,http://opendatacommunities.org/def/concept/finance/sercop/objective/107,Kendal Picture Framer,28.20,0,Picture framing,Highway Equipment & Materials,230000
South Lakeland District Council,http://opendatacommunities.org/id/district-council/south-lakeland,30/11/2014,29/09/2014,Town View Field Hostel,Housing Services,http://opendatacommunities.org/def/concept/finance/sercop/objective/108,Poundstretcher,71.58,0,Bedding for Hostel,Domestic Goods,160000
South Lakeland District Council,http://opendatacommunities.org/id/district-council/south-lakeland,30/11/2014,30/09/2014,Research and Intelligence,Central Services,http://opendatacommunities.org/def/concept/finance/sercop/objective/102,St Pancreas Hotel,116.67,0,Overnight accomomdation,Public Transport,360000
South Lakeland District Council,http://opendatacommunities.org/id/district-council/south-lakeland,30/11/2014,30/09/2014,Research and Intelligence,Central Services,http://opendatacommunities.org/def/concept/finance/sercop/objective/102,NW Trains,94.50,0,Train tickets - Oxe to London rtn,Public Transport,360000
South Lakeland District Council,http://opendatacommunities.org/id/district-council/south-lakeland,30/11/2014,30/09/2014,Human Resources,Central Services,http://opendatacommunities.org/def/concept/finance/sercop/objective/102,Omniplex,195.00,0,Training Day,Education,170000
South Lakeland District Council,http://opendatacommunities.org/id/district-council/south-lakeland,30/11/2014,30/09/2014,Human Resources,Central Services,http://opendatacommunities.org/def/concept/finance/sercop/objective/102,FTPE,56.70,0,Train tickets,Education,170000
South Lakeland District Council,http://opendatacommunities.org/id/district-council/south-lakeland,30/11/2014,30/09/2014,Economic Development,Cultural Environmental Regulatory & Planning Services,http://opendatacommunities.org/def/concept/finance/sercop/objective/104,Rymans,39.08,0,Stationery req'd for MIPIM event,Environmental Services,180000
South Lakeland District Council,http://opendatacommunities.org/id/district-council/south-lakeland,30/11/2014,01/10/2014,Research and Intelligence,Central Services,http://opendatacommunities.org/def/concept/finance/sercop/objective/102,Nandos,8.54,0,Meal - London,Public Transport,360000
South Lakeland District Council,http://opendatacommunities.org/id/district-council/south-lakeland,30/11/2014,01/10/2014,Financial Services,Central Services,http://opendatacommunities.org/def/concept/finance/sercop/objective/102,IRRV,156.00,0,IRRV Level 3 exam fees,Education,170000
South Lakeland District Council,http://opendatacommunities.org/id/district-council/south-lakeland,30/11/2014,01/10/2014,Coronation Hall,Cultural Environmental Regulatory & Planning Services,http://opendatacommunities.org/def/concept/finance/sercop/objective/104,Screwfix,25.00,0,Earplugs pack x200,Highway Equipment & Materials,230000
South Lakeland District Council,http://opendatacommunities.org/id/district-council/south-lakeland,30/11/2014,01/10/2014,Coronation Hall,Cultural Environmental Regulatory & Planning Services,http://opendatacommunities.org/def/concept/finance/sercop/objective/104,Bookers Ltd,57.14,0,"Banquet roll, tea, coffee, teaspoons",Highway Equipment & Materials,230000
South Lakeland District Council,http://opendatacommunities.org/id/district-council/south-lakeland,30/11/2014,02/10/2014,Revenues and Benefits,Central Services,http://opendatacommunities.org/def/concept/finance/sercop/objective/102,Amazon.co.uk,25.47,0,Sasco Year Planner 2015,Financial Services,200000
South Lakeland District Council,http://opendatacommunities.org/id/district-council/south-lakeland,30/11/2014,02/10/2014,Research and Intelligence,Central Services,http://opendatacommunities.org/def/concept/finance/sercop/objective/102,M&S,9.55,0,Meal - London,Public Transport,360000
South Lakeland District Council,http://opendatacommunities.org/id/district-council/south-lakeland,30/11/2014,02/10/2014,Development Implementation,Central Services,http://opendatacommunities.org/def/concept/finance/sercop/objective/102,Martin McColl,2.00,0,Westmorland Gazette,Stationery,340000
South Lakeland District Council,http://opendatacommunities.org/id/district-council/south-lakeland,30/11/2014,02/10/2014,Economic Development,Cultural Environmental Regulatory & Planning Services,http://opendatacommunities.org/def/concept/finance/sercop/objective/104,D Quiggin & Son,13.98,0,Mint cake samples for MIPIM event,Environmental Services,180000
South Lakeland District Council,http://opendatacommunities.org/id/district-council/south-lakeland,30/11/2014,02/10/2014,Financial Services,Central Services,http://opendatacommunities.org/def/concept/finance/sercop/objective/102,Trainline,43.55,0,Train tickets to Leeds,Public Transport,360000
South Lakeland District Council,http://opendatacommunities.org/id/district-council/south-lakeland,30/11/2014,02/10/2014,ICT Group,Central Services,http://opendatacommunities.org/def/concept/finance/sercop/objective/102,Home Bargains,0.83,0,Screw driver,Information Communication Technology,270000
South Lakeland District Council,http://opendatacommunities.org/id/district-council/south-lakeland,30/11/2014,03/10/2014,Community Services,Central Services,http://opendatacommunities.org/def/concept/finance/sercop/objective/102,Morrisons,38.86,0,Diesel for hire car,Education,170000
South Lakeland District Council,http://opendatacommunities.org/id/district-council/south-lakeland,30/11/2014,03/10/2014,Economic Development,Cultural Environmental Regulatory & Planning Services,http://opendatacommunities.org/def/concept/finance/sercop/objective/104,Aztec Event Servs,138.00,0,Hire of equip for stand ,Environmental Services,180000
South Lakeland District Council,http://opendatacommunities.org/id/district-council/south-lakeland,30/11/2014,03/10/2014,Information Services,Central Services,http://opendatacommunities.org/def/concept/finance/sercop/objective/102,Travel Lodge,37.50,0,Hotel Booking BassetLaw,Human Resources,260000
South Lakeland District Council,http://opendatacommunities.org/id/district-council/south-lakeland,30/11/2014,03/10/2014,Information Services,Central Services,http://opendatacommunities.org/def/concept/finance/sercop/objective/102,Travel Lodge,37.50,0,Hotel Booking BassetLaw,Human Resources,260000
South Lakeland District Council,http://opendatacommunities.org/id/district-council/south-lakeland,30/11/2014,03/10/2014,Information Services,Central Services,http://opendatacommunities.org/def/concept/finance/sercop/objective/102,Travel Lodge,1.67,0,Credit card fee,Human Resources,260000
South Lakeland District Council,http://opendatacommunities.org/id/district-council/south-lakeland,30/11/2014,04/10/2014,Revenues and Benefits,Central Services,http://opendatacommunities.org/def/concept/finance/sercop/objective/102,National Railway,109.10,0,Train Tickets Manchester 10/12/14,Public Transport,360000
South Lakeland District Council,http://opendatacommunities.org/id/district-council/south-lakeland,30/11/2014,04/10/2014,Car Park Enforcement,Highways & Transport Services,http://opendatacommunities.org/def/concept/finance/sercop/objective/107,Sports Direct,19.16,0,1x work Boots,Clothing,140000
South Lakeland District Council,http://opendatacommunities.org/id/district-council/south-lakeland,30/11/2014,06/10/2014,Economic Development,Cultural Environmental Regulatory & Planning Services,http://opendatacommunities.org/def/concept/finance/sercop/objective/104,Rymans,4.57,0,Stationery req'd for MIPIM event,Environmental Services,180000
South Lakeland District Council,http://opendatacommunities.org/id/district-council/south-lakeland,30/11/2014,06/10/2014,Car Parks,Highways & Transport Services,http://opendatacommunities.org/def/concept/finance/sercop/objective/107,Sports Direct,27.49,0,1x work Boots,Clothing,140000
South Lakeland District Council,http://opendatacommunities.org/id/district-council/south-lakeland,30/11/2014,06/10/2014,Kendal Town Hall,Cultural Environmental Regulatory & Planning Services,http://opendatacommunities.org/def/concept/finance/sercop/objective/104,Boyes ,7.28,0,Bucket & cleaning liquid,Highway Equipment & Materials,230000
South Lakeland District Council,http://opendatacommunities.org/id/district-council/south-lakeland,30/11/2014,07/10/2014,Transport,Cultural Environmental Regulatory & Planning Services,http://opendatacommunities.org/def/concept/finance/sercop/objective/104,VOSA,500.00,0,Vehicle testing,Vehicle Management,380000
South Lakeland District Council,http://opendatacommunities.org/id/district-council/south-lakeland,30/11/2014,07/10/2014,Parks and Open Spaces,Cultural Environmental Regulatory & Planning Services,http://opendatacommunities.org/def/concept/finance/sercop/objective/104,B&S Chains,21.44,0,M10 Eyebolt 10mm Drilled Shackle,Sports & Playground Equipment & Maintenance,330000
South Lakeland District Council,http://opendatacommunities.org/id/district-council/south-lakeland,30/11/2014,07/10/2014,Parks and Open Spaces,Cultural Environmental Regulatory & Planning Services,http://opendatacommunities.org/def/concept/finance/sercop/objective/104,R S Components,40.07,0,Universal Joint Gaiter,Sports & Playground Equipment & Maintenance,330000
South Lakeland District Council,http://opendatacommunities.org/id/district-council/south-lakeland,30/11/2014,07/10/2014,Economic Development,Cultural Environmental Regulatory & Planning Services,http://opendatacommunities.org/def/concept/finance/sercop/objective/104,Rymans,4.57,0,Stationery req'd for MIPIM event,Environmental Services,180000
South Lakeland District Council,http://opendatacommunities.org/id/district-council/south-lakeland,30/11/2014,07/10/2014,Transport,Cultural Environmental Regulatory & Planning Services,http://opendatacommunities.org/def/concept/finance/sercop/objective/104,VOSA,500.00,0,Vehicle Testing Fees,Vehicle Management,380000
South Lakeland District Council,http://opendatacommunities.org/id/district-council/south-lakeland,30/11/2014,07/10/2014,Asst Dir Resources,Central Services,http://opendatacommunities.org/def/concept/finance/sercop/objective/102,Amazon.co.uk,5.98,0,USB cables,Utilities,370000
South Lakeland District Council,http://opendatacommunities.org/id/district-council/south-lakeland,30/11/2014,08/10/2014,Town View Field Hostel,Housing Services,http://opendatacommunities.org/def/concept/finance/sercop/objective/108,Amazon.co.uk,5.74,0,10x A4 lever arch files,Domestic Goods,160000
South Lakeland District Council,http://opendatacommunities.org/id/district-council/south-lakeland,30/11/2014,08/10/2014,Town View Field Hostel,Housing Services,http://opendatacommunities.org/def/concept/finance/sercop/objective/108,Amazon.co.uk,5.74,0,10x A4 lever arch files,Domestic Goods,160000
South Lakeland District Council,http://opendatacommunities.org/id/district-council/south-lakeland,30/11/2014,08/10/2014,Economic Development,Cultural Environmental Regulatory & Planning Services,http://opendatacommunities.org/def/concept/finance/sercop/objective/104,Amazon.co.uk,206.02,0,1x Lenovo yoga tablet HD+,Environmental Services,180000
South Lakeland District Council,http://opendatacommunities.org/id/district-council/south-lakeland,30/11/2014,08/10/2014,Cemeteries Office,Central Services,http://opendatacommunities.org/def/concept/finance/sercop/objective/102,Trainline,74.66,0,Transport,Public Transport,360000
South Lakeland District Council,http://opendatacommunities.org/id/district-council/south-lakeland,30/11/2014,08/10/2014,Customer Services,Central Services,http://opendatacommunities.org/def/concept/finance/sercop/objective/102,Royal Mail,52.65,0,1st Class Stationery stamp sheet,Stationery,340000
South Lakeland District Council,http://opendatacommunities.org/id/district-council/south-lakeland,30/11/2014,08/10/2014,Asst Dir Resources,Central Services,http://opendatacommunities.org/def/concept/finance/sercop/objective/102,Amazon.co.uk,4.56,0,USB cables,Utilities,370000
South Lakeland District Council,http://opendatacommunities.org/id/district-council/south-lakeland,30/11/2014,08/10/2014,Kendal Town Hall,Cultural Environmental Regulatory & Planning Services,http://opendatacommunities.org/def/concept/finance/sercop/objective/104,Rymans,4.16,0,Post it index tabs,Highway Equipment & Materials,230000
South Lakeland District Council,http://opendatacommunities.org/id/district-council/south-lakeland,30/11/2014,08/10/2014,Kendal Town Hall,Cultural Environmental Regulatory & Planning Services,http://opendatacommunities.org/def/concept/finance/sercop/objective/104,Argos,187.60,0,Henry vacuum & accessories,Highway Equipment & Materials,230000
South Lakeland District Council,http://opendatacommunities.org/id/district-council/south-lakeland,30/11/2014,09/10/2014,Research and Intelligence,Central Services,http://opendatacommunities.org/def/concept/finance/sercop/objective/102,Martin McColl,2.00,0,2x Westmorland Gazette,Stationery,340000
South Lakeland District Council,http://opendatacommunities.org/id/district-council/south-lakeland,30/11/2014,09/10/2014,Car Park Enforcement,Highways & Transport Services,http://opendatacommunities.org/def/concept/finance/sercop/objective/107,LDNP,22.50,0,6x radar keys for toilets,Highway Equipment & Materials,230000
South Lakeland District Council,http://opendatacommunities.org/id/district-council/south-lakeland,30/11/2014,09/10/2014,Kendal Town Hall,Cultural Environmental Regulatory & Planning Services,http://opendatacommunities.org/def/concept/finance/sercop/objective/104,Granwax Prod,111.90,0,Polysolve cleaner 5L,Highway Equipment & Materials,230000
South Lakeland District Council,http://opendatacommunities.org/id/district-council/south-lakeland,30/11/2014,10/10/2014,Town View Field Hostel,Housing Services,http://opendatacommunities.org/def/concept/finance/sercop/objective/108,Amazon.co.uk,11.26,0,5x Flip chart pads,Domestic Goods,160000
South Lakeland District Council,http://opendatacommunities.org/id/district-council/south-lakeland,30/11/2014,10/10/2014,Town View Field Hostel,Housing Services,http://opendatacommunities.org/def/concept/finance/sercop/objective/108,Amazon.co.uk,12.79,0,Envelope Tea,Domestic Goods,160000
South Lakeland District Council,http://opendatacommunities.org/id/district-council/south-lakeland,30/11/2014,10/10/2014,Town View Field Hostel,Housing Services,http://opendatacommunities.org/def/concept/finance/sercop/objective/108,Amazon.co.uk,15.82,0,3L Air flask,Domestic Goods,160000
South Lakeland District Council,http://opendatacommunities.org/id/district-council/south-lakeland,30/11/2014,10/10/2014,Economic Development,Cultural Environmental Regulatory & Planning Services,http://opendatacommunities.org/def/concept/finance/sercop/objective/104,Home Bargains,4.46,0,"Glass bowl, tumblers and tape",Environmental Services,180000
South Lakeland District Council,http://opendatacommunities.org/id/district-council/south-lakeland,30/11/2014,10/10/2014,Economic Development,Cultural Environmental Regulatory & Planning Services,http://opendatacommunities.org/def/concept/finance/sercop/objective/104,Facebook,12.00,0,Adverts & Marketing,Environmental Services,180000
South Lakeland District Council,http://opendatacommunities.org/id/district-council/south-lakeland,30/11/2014,10/10/2014,Car Park Enforcement,Highways & Transport Services,http://opendatacommunities.org/def/concept/finance/sercop/objective/107,Sports Direct,27.49,0,1x work Boots,Clothing,140000
South Lakeland District Council,http://opendatacommunities.org/id/district-council/south-lakeland,30/11/2014,11/10/2014,Town View Field Hostel,Housing Services,http://opendatacommunities.org/def/concept/finance/sercop/objective/108,Amazon.co.uk,5.99,0,Milk portions,Domestic Goods,160000
South Lakeland District Council,http://opendatacommunities.org/id/district-council/south-lakeland,30/11/2014,12/10/2014,Research and Intelligence,Central Services,http://opendatacommunities.org/def/concept/finance/sercop/objective/102,Jamie's,10.42,0,Meal - London,Public Transport,360000
South Lakeland District Council,http://opendatacommunities.org/id/district-council/south-lakeland,30/11/2014,12/10/2014,Street Cleansing Contractor,Cultural Environmental Regulatory & Planning Services,http://opendatacommunities.org/def/concept/finance/sercop/objective/104,Morrisons,12.50,0,Water for first aid kits,Highway Equipment & Materials,230000
South Lakeland District Council,http://opendatacommunities.org/id/district-council/south-lakeland,30/11/2014,12/10/2014,Asst Dir Customer Focus,Central Services,http://opendatacommunities.org/def/concept/finance/sercop/objective/102,Travel Lodge,51.67,0,Accom for site visit to Bassetlow,Human Resources,260000
South Lakeland District Council,http://opendatacommunities.org/id/district-council/south-lakeland,30/11/2014,13/10/2014,Parks and Open Spaces,Cultural Environmental Regulatory & Planning Services,http://opendatacommunities.org/def/concept/finance/sercop/objective/104,Lakeland Supplies,9.95,0,Grinder discs,Sports & Playground Equipment & Maintenance,330000
South Lakeland District Council,http://opendatacommunities.org/id/district-council/south-lakeland,30/11/2014,13/10/2014,Corporate Communications,Central Services,http://opendatacommunities.org/def/concept/finance/sercop/objective/102,Gates,56.30,0,Travel - Stockport to London rtn,Public Transport,360000
South Lakeland District Council,http://opendatacommunities.org/id/district-council/south-lakeland,30/11/2014,13/10/2014,Corporate Communications,Central Services,http://opendatacommunities.org/def/concept/finance/sercop/objective/102,Gates,98.50,0,Travel - Oxe to London rtn,Public Transport,360000
South Lakeland District Council,http://opendatacommunities.org/id/district-council/south-lakeland,30/11/2014,13/10/2014,Corporate Communications,Central Services,http://opendatacommunities.org/def/concept/finance/sercop/objective/102,Gates,37.00,0,Travel - Oxe to Old Trafford ,Public Transport,360000
South Lakeland District Council,http://opendatacommunities.org/id/district-council/south-lakeland,30/11/2014,13/10/2014,Corporate Communications,Central Services,http://opendatacommunities.org/def/concept/finance/sercop/objective/102,Gates,25.80,0,Travel - Oxe to Old Trafford ,Public Transport,360000
South Lakeland District Council,http://opendatacommunities.org/id/district-council/south-lakeland,30/11/2014,14/10/2014,Development Implementation,Central Services,http://opendatacommunities.org/def/concept/finance/sercop/objective/102,Jamies Italian,48.08,0,Food and Drink Expenses,Human Resources,260000
South Lakeland District Council,http://opendatacommunities.org/id/district-council/south-lakeland,30/11/2014,14/10/2014,Economic Development,Cultural Environmental Regulatory & Planning Services,http://opendatacommunities.org/def/concept/finance/sercop/objective/104,Argos Ltd,189.99,0,Equipment for Events,Environmental Services,180000
South Lakeland District Council,http://opendatacommunities.org/id/district-council/south-lakeland,30/11/2014,14/10/2014,ICT Group,Central Services,http://opendatacommunities.org/def/concept/finance/sercop/objective/102,Comfort Inn,127.50,0,IT training accommodation,Education,170000
South Lakeland District Council,http://opendatacommunities.org/id/district-council/south-lakeland,30/11/2014,15/10/2014,Housing Standards,Housing Services,http://opendatacommunities.org/def/concept/finance/sercop/objective/108,Maddison Business Systems Ltd,219.00,0,4x Dataflex single monitor desk stand,Highway Equipment & Materials,230000
South Lakeland District Council,http://opendatacommunities.org/id/district-council/south-lakeland,30/11/2014,15/10/2014,Homelessness,Housing Services,http://opendatacommunities.org/def/concept/finance/sercop/objective/108,Airey's of Kendal,60.25,0,Gas & electricity meter payment for social lettings,Social Community Care Supplies & Services,410000
South Lakeland District Council,http://opendatacommunities.org/id/district-council/south-lakeland,30/11/2014,15/10/2014,Development Implementation,Central Services,http://opendatacommunities.org/def/concept/finance/sercop/objective/102,Green,21.20,0,Food and Drink Expenses,Human Resources,260000
South Lakeland District Council,http://opendatacommunities.org/id/district-council/south-lakeland,30/11/2014,15/10/2014,Economic Development,Cultural Environmental Regulatory & Planning Services,http://opendatacommunities.org/def/concept/finance/sercop/objective/104,Dorsett Hotel,135.00,0,Accommodation Expenses,Environmental Services,180000
South Lakeland District Council,http://opendatacommunities.org/id/district-council/south-lakeland,30/11/2014,15/10/2014,Development Implementation,Central Services,http://opendatacommunities.org/def/concept/finance/sercop/objective/102,London Overground,18.80,0,Travel Expenses,Public Transport,360000
South Lakeland District Council,http://opendatacommunities.org/id/district-council/south-lakeland,30/11/2014,15/10/2014,Management Team,Central Services,http://opendatacommunities.org/def/concept/finance/sercop/objective/102,Fountains B&B,132.30,0,Overnight Accommodation,Public Transport,360000
South Lakeland District Council,http://opendatacommunities.org/id/district-council/south-lakeland,30/11/2014,15/10/2014,Ulverston Market Hall,External Trading Accounts,http://opendatacommunities.org/def/concept/finance/sercop/objective/,Fed Media,116.66,0,Advertising services for Market Hall Kendal,Facilities & Management Services,190000
South Lakeland District Council,http://opendatacommunities.org/id/district-council/south-lakeland,30/11/2014,15/10/2014,Offices,Central Services,http://opendatacommunities.org/def/concept/finance/sercop/objective/102,mbs ,219.00,0,Desk Stands,Highway Equipment & Materials,230000
South Lakeland District Council,http://opendatacommunities.org/id/district-council/south-lakeland,30/11/2014,15/10/2014,ICT Group,Central Services,http://opendatacommunities.org/def/concept/finance/sercop/objective/102,Millhouse Worksop,24.97,0,Evening meal,Education,170000
South Lakeland District Council,http://opendatacommunities.org/id/district-council/south-lakeland,30/11/2014,15/10/2014,ICT Group,Central Services,http://opendatacommunities.org/def/concept/finance/sercop/objective/102,Millhouse Worksop,6.07,0,Evening meal,Education,170000
South Lakeland District Council,http://opendatacommunities.org/id/district-council/south-lakeland,30/11/2014,16/10/2014,Town View Field Hostel,Housing Services,http://opendatacommunities.org/def/concept/finance/sercop/objective/108,Amazon,7.80,0,2x pack of 4 Cups,Domestic Goods,160000
South Lakeland District Council,http://opendatacommunities.org/id/district-council/south-lakeland,30/11/2014,16/10/2014,Legal Services,Central Services,http://opendatacommunities.org/def/concept/finance/sercop/objective/102,Law Society,352.00,0,Practising Certificate: NH,Human Resources,260000
South Lakeland District Council,http://opendatacommunities.org/id/district-council/south-lakeland,30/11/2014,16/10/2014,Legal Services,Central Services,http://opendatacommunities.org/def/concept/finance/sercop/objective/102,Law Society,352.00,0,Practising Certificate: WC,Human Resources,260000
South Lakeland District Council,http://opendatacommunities.org/id/district-council/south-lakeland,30/11/2014,16/10/2014,Development Implementation,Central Services,http://opendatacommunities.org/def/concept/finance/sercop/objective/102,London Overground,18.80,0,Travel Expenses,Public Transport,360000
South Lakeland District Council,http://opendatacommunities.org/id/district-council/south-lakeland,30/11/2014,16/10/2014,Economic Development,Cultural Environmental Regulatory & Planning Services,http://opendatacommunities.org/def/concept/finance/sercop/objective/104,Facebook,8.16,0,Advertising Expenses,Environmental Services,180000
South Lakeland District Council,http://opendatacommunities.org/id/district-council/south-lakeland,30/11/2014,16/10/2014,ICT Group,Central Services,http://opendatacommunities.org/def/concept/finance/sercop/objective/102,BP Prizet Northbound,52.35,0,Petrol to refill a hire car,Education,170000
South Lakeland District Council,http://opendatacommunities.org/id/district-council/south-lakeland,30/11/2014,16/10/2014,ICT Group,Central Services,http://opendatacommunities.org/def/concept/finance/sercop/objective/102,Starbucks,17.62,0,Breakfast,Education,170000
South Lakeland District Council,http://opendatacommunities.org/id/district-council/south-lakeland,30/11/2014,17/10/2014,Town View Field Hostel,Housing Services,http://opendatacommunities.org/def/concept/finance/sercop/objective/108,Amazon,3.45,0,Sugar ,Cleaning & Janitorial,130000
South Lakeland District Council,http://opendatacommunities.org/id/district-council/south-lakeland,30/11/2014,17/10/2014,Town View Field Hostel,Housing Services,http://opendatacommunities.org/def/concept/finance/sercop/objective/108,Amazon,13.54,0,Squash ,Cleaning & Janitorial,130000
South Lakeland District Council,http://opendatacommunities.org/id/district-council/south-lakeland,30/11/2014,17/10/2014,Legal Services,Central Services,http://opendatacommunities.org/def/concept/finance/sercop/objective/102,Law Society,352.00,0,Practising Certificate: MN,Human Resources,260000
South Lakeland District Council,http://opendatacommunities.org/id/district-council/south-lakeland,30/11/2014,17/10/2014,Development Implementation,Central Services,http://opendatacommunities.org/def/concept/finance/sercop/objective/102,Pizza Express,18.41,0,Food and Drink Expenses,Human Resources,260000
South Lakeland District Council,http://opendatacommunities.org/id/district-council/south-lakeland,30/11/2014,17/10/2014,Development Implementation,Central Services,http://opendatacommunities.org/def/concept/finance/sercop/objective/102,Westfield SC,16.25,0,Event Car Hire Expenses,Public Transport,360000
South Lakeland District Council,http://opendatacommunities.org/id/district-council/south-lakeland,30/11/2014,17/10/2014,Development Implementation,Central Services,http://opendatacommunities.org/def/concept/finance/sercop/objective/102,Olympia,20.83,0,Event Car Hire Expenses,Public Transport,360000
South Lakeland District Council,http://opendatacommunities.org/id/district-council/south-lakeland,30/11/2014,17/10/2014,Development Implementation,Central Services,http://opendatacommunities.org/def/concept/finance/sercop/objective/102,Norton Canes,56.60,0,Event Car Hire Expenses,Vehicle Management,380000
South Lakeland District Council,http://opendatacommunities.org/id/district-council/south-lakeland,30/11/2014,17/10/2014,Development Implementation,Central Services,http://opendatacommunities.org/def/concept/finance/sercop/objective/102,Road Chef,20.76,0,Food and Drink Expenses,Human Resources,260000
South Lakeland District Council,http://opendatacommunities.org/id/district-council/south-lakeland,30/11/2014,17/10/2014,Development Implementation,Central Services,http://opendatacommunities.org/def/concept/finance/sercop/objective/102,M6 Toll,4.58,0,Event Car Hire Expenses,Vehicle Management,380000
South Lakeland District Council,http://opendatacommunities.org/id/district-council/south-lakeland,30/11/2014,17/10/2014,Research and Intelligence,Central Services,http://opendatacommunities.org/def/concept/finance/sercop/objective/102,FTPE,26.00,0,Return Train Travel,Public Transport,360000
South Lakeland District Council,http://opendatacommunities.org/id/district-council/south-lakeland,30/11/2014,17/10/2014,Parks and Open Spaces,Cultural Environmental Regulatory & Planning Services,http://opendatacommunities.org/def/concept/finance/sercop/objective/104,Lakeland Supplies,15.10,0,Adhesive & Gloves,Sports & Playground Equipment & Maintenance,330000
South Lakeland District Council,http://opendatacommunities.org/id/district-council/south-lakeland,30/11/2014,20/10/2014,Economic Development,Cultural Environmental Regulatory & Planning Services,http://opendatacommunities.org/def/concept/finance/sercop/objective/104,Argos Ltd,-189.99,0,Equipment for Events CREDIT,Environmental Services,180000
South Lakeland District Council,http://opendatacommunities.org/id/district-council/south-lakeland,30/11/2014,20/10/2014,Research and Intelligence,Central Services,http://opendatacommunities.org/def/concept/finance/sercop/objective/102,ISO/ CS,96.27,0,Miscellaneous Publishing - ISO:270001,Public Transport,360000
South Lakeland District Council,http://opendatacommunities.org/id/district-council/south-lakeland,30/11/2014,20/10/2014,Customer Services,Central Services,http://opendatacommunities.org/def/concept/finance/sercop/objective/102,commercial,94.39,0,stationery,Stationery,340000
South Lakeland District Council,http://opendatacommunities.org/id/district-council/south-lakeland,30/11/2014,20/10/2014,Customer Services,Central Services,http://opendatacommunities.org/def/concept/finance/sercop/objective/102,commercial,9.84,0,stationery,Stationery,340000
South Lakeland District Council,http://opendatacommunities.org/id/district-council/south-lakeland,30/11/2014,20/10/2014,Customer Services,Central Services,http://opendatacommunities.org/def/concept/finance/sercop/objective/102,commercial,12.65,0,stationery,Stationery,340000
South Lakeland District Council,http://opendatacommunities.org/id/district-council/south-lakeland,30/11/2014,20/10/2014,Customer Services,Central Services,http://opendatacommunities.org/def/concept/finance/sercop/objective/102,commercial,60.34,0,stationery,Stationery,340000
South Lakeland District Council,http://opendatacommunities.org/id/district-council/south-lakeland,30/11/2014,20/10/2014,Customer Services,Central Services,http://opendatacommunities.org/def/concept/finance/sercop/objective/102,commercial,112.83,0,stationery,Stationery,340000
South Lakeland District Council,http://opendatacommunities.org/id/district-council/south-lakeland,30/11/2014,20/10/2014,Customer Services,Central Services,http://opendatacommunities.org/def/concept/finance/sercop/objective/102,commercial,47.86,0,stationery,Stationery,340000
South Lakeland District Council,http://opendatacommunities.org/id/district-council/south-lakeland,30/11/2014,20/10/2014,Customer Services,Central Services,http://opendatacommunities.org/def/concept/finance/sercop/objective/102,commercial,197.18,0,stationery,Stationery,340000
South Lakeland District Council,http://opendatacommunities.org/id/district-council/south-lakeland,30/11/2014,20/10/2014,Customer Services,Central Services,http://opendatacommunities.org/def/concept/finance/sercop/objective/102,commercial,90.37,0,stationery,Stationery,340000
South Lakeland District Council,http://opendatacommunities.org/id/district-council/south-lakeland,30/11/2014,20/10/2014,Customer Services,Central Services,http://opendatacommunities.org/def/concept/finance/sercop/objective/102,commercial,97.28,0,stationery,Stationery,340000
South Lakeland District Council,http://opendatacommunities.org/id/district-council/south-lakeland,30/11/2014,20/10/2014,Customer Services,Central Services,http://opendatacommunities.org/def/concept/finance/sercop/objective/102,commercial,28.26,0,stationery,Stationery,340000
South Lakeland District Council,http://opendatacommunities.org/id/district-council/south-lakeland,30/11/2014,20/10/2014,Customer Services,Central Services,http://opendatacommunities.org/def/concept/finance/sercop/objective/102,commercial,21.29,0,stationery,Stationery,340000
South Lakeland District Council,http://opendatacommunities.org/id/district-council/south-lakeland,30/11/2014,20/10/2014,Customer Services,Central Services,http://opendatacommunities.org/def/concept/finance/sercop/objective/102,commercial,74.88,0,stationery,Stationery,340000
South Lakeland District Council,http://opendatacommunities.org/id/district-council/south-lakeland,30/11/2014,20/10/2014,Members,Central Services,http://opendatacommunities.org/def/concept/finance/sercop/objective/102,ICO,35.00,0,Data protection registration for DW,Financial Services,200000
South Lakeland District Council,http://opendatacommunities.org/id/district-council/south-lakeland,30/11/2014,21/10/2014,Cemeteries Office,Central Services,http://opendatacommunities.org/def/concept/finance/sercop/objective/102,Clove,36.33,0,Tablet Case,Information Communication Technology,270000
South Lakeland District Council,http://opendatacommunities.org/id/district-council/south-lakeland,30/11/2014,21/10/2014,Revenues and Benefits,Central Services,http://opendatacommunities.org/def/concept/finance/sercop/objective/102,IRRV,10.67,0,L Williams Subscription 2014,Financial Services,200000
South Lakeland District Council,http://opendatacommunities.org/id/district-council/south-lakeland,30/11/2014,21/10/2014,Development Implementation,Central Services,http://opendatacommunities.org/def/concept/finance/sercop/objective/102,RICS,145.00,0,"RICS Training Event, Warrington",Education,170000
South Lakeland District Council,http://opendatacommunities.org/id/district-council/south-lakeland,30/11/2014,23/10/2014,Transport,Cultural Environmental Regulatory & Planning Services,http://opendatacommunities.org/def/concept/finance/sercop/objective/104,David Hayton,51.14,0,Vehicle parts,Vehicle Management,380000
South Lakeland District Council,http://opendatacommunities.org/id/district-council/south-lakeland,30/11/2014,23/10/2014,Development Implementation,Central Services,http://opendatacommunities.org/def/concept/finance/sercop/objective/102,Martin McColl,2.00,0,Westmorland Gazette x2,Stationery,340000
South Lakeland District Council,http://opendatacommunities.org/id/district-council/south-lakeland,30/11/2014,23/10/2014,Financial Services,Central Services,http://opendatacommunities.org/def/concept/finance/sercop/objective/102,West Coast Trains,32.00,0,Train tickets to commissioning training in Carlisle,Public Transport,360000
South Lakeland District Council,http://opendatacommunities.org/id/district-council/south-lakeland,30/11/2014,23/10/2014,Coronation Hall,Cultural Environmental Regulatory & Planning Services,http://opendatacommunities.org/def/concept/finance/sercop/objective/104,Currys,40.83,0,Telephone,Highway Equipment & Materials,230000
South Lakeland District Council,http://opendatacommunities.org/id/district-council/south-lakeland,30/11/2014,23/10/2014,Coronation Hall,Cultural Environmental Regulatory & Planning Services,http://opendatacommunities.org/def/concept/finance/sercop/objective/104,Booker,14.68,0,Catering,Highway Equipment & Materials,230000
South Lakeland District Council,http://opendatacommunities.org/id/district-council/south-lakeland,30/11/2014,23/10/2014,Coronation Hall,Cultural Environmental Regulatory & Planning Services,http://opendatacommunities.org/def/concept/finance/sercop/objective/104,Croftlands,55.80,0,Laundry,Highway Equipment & Materials,230000
South Lakeland District Council,http://opendatacommunities.org/id/district-council/south-lakeland,30/11/2014,23/10/2014,ICT Group,Central Services,http://opendatacommunities.org/def/concept/finance/sercop/objective/102,Amazon,14.40,0,5* USB plugs,Information Communication Technology,270000
South Lakeland District Council,http://opendatacommunities.org/id/district-council/south-lakeland,30/11/2014,24/10/2014,Parks and Open Spaces,Cultural Environmental Regulatory & Planning Services,http://opendatacommunities.org/def/concept/finance/sercop/objective/104,B&Q,15.81,0,Yacht varnish & brushes,Sports & Playground Equipment & Maintenance,330000
South Lakeland District Council,http://opendatacommunities.org/id/district-council/south-lakeland,30/11/2014,24/10/2014,Parks and Open Spaces,Cultural Environmental Regulatory & Planning Services,http://opendatacommunities.org/def/concept/finance/sercop/objective/104,Lakeland Supplies,16.49,0,"M12 x 180mm bolts, washers, nuts",Sports & Playground Equipment & Maintenance,330000
South Lakeland District Council,http://opendatacommunities.org/id/district-council/south-lakeland,30/11/2014,24/10/2014,Parks and Open Spaces,Cultural Environmental Regulatory & Planning Services,http://opendatacommunities.org/def/concept/finance/sercop/objective/104,Barker & Sons,18.50,0,"T&G flooring, batten, nails",Sports & Playground Equipment & Maintenance,330000
South Lakeland District Council,http://opendatacommunities.org/id/district-council/south-lakeland,30/11/2014,27/10/2014,Homelessness,Housing Services,http://opendatacommunities.org/def/concept/finance/sercop/objective/108,Blue Star Taxis,8.50,0,Travel from Oxenholme Stn to TVF Hostel,Social Community Care Supplies & Services,410000
South Lakeland District Council,http://opendatacommunities.org/id/district-council/south-lakeland,30/11/2014,27/10/2014,Management Team,Central Services,http://opendatacommunities.org/def/concept/finance/sercop/objective/102,Arden House,137.50,0,Overnight Accommodation,Public Transport,360000
South Lakeland District Council,http://opendatacommunities.org/id/district-council/south-lakeland,30/11/2014,27/10/2014,Information Services,Central Services,http://opendatacommunities.org/def/concept/finance/sercop/objective/102,George Payne Irish Bar,8.90,0,Food,Education,170000
South Lakeland District Council,http://opendatacommunities.org/id/district-council/south-lakeland,30/11/2014,27/10/2014,Information Services,Central Services,http://opendatacommunities.org/def/concept/finance/sercop/objective/102,Restaurante Ambos Mundos,13.37,0,Food,Education,170000
South Lakeland District Council,http://opendatacommunities.org/id/district-council/south-lakeland,30/11/2014,27/10/2014,Information Services,Central Services,http://opendatacommunities.org/def/concept/finance/sercop/objective/102,FF.CC Generalitaton,34.53,0,Barcelona Tube Pass,Education,170000
South Lakeland District Council,http://opendatacommunities.org/id/district-council/south-lakeland,30/11/2014,27/10/2014,Information Services,Central Services,http://opendatacommunities.org/def/concept/finance/sercop/objective/102,Premier Inn Liverpool,7.29,0,Premier Inn Food,Education,170000
South Lakeland District Council,http://opendatacommunities.org/id/district-council/south-lakeland,30/11/2014,28/10/2014,Economic Development,Cultural Environmental Regulatory & Planning Services,http://opendatacommunities.org/def/concept/finance/sercop/objective/104,Google,0.60,0,Equipment for Events,Environmental Services,180000
South Lakeland District Council,http://opendatacommunities.org/id/district-council/south-lakeland,30/11/2014,29/10/2014,Human Resources,Central Services,http://opendatacommunities.org/def/concept/finance/sercop/objective/102,Trainline,70.38,0,Rail,Education,170000
South Lakeland District Council,http://opendatacommunities.org/id/district-council/south-lakeland,30/11/2014,30/10/2014,Homelessness,Housing Services,http://opendatacommunities.org/def/concept/finance/sercop/objective/108,Blue Star Taxis,-8.50,0,Travel from Oxenholme Stn to TVF Hostel,Social Community Care Supplies & Services,410000
South Lakeland District Council,http://opendatacommunities.org/id/district-council/south-lakeland,30/11/2014,30/10/2014,Development Implementation,Central Services,http://opendatacommunities.org/def/concept/finance/sercop/objective/102,Martin McColl,1.00,0,Westmorland Gazette,Stationery,340000
South Lakeland District Council,http://opendatacommunities.org/id/district-council/south-lakeland,30/11/2014,30/10/2014,ICT Group,Central Services,http://opendatacommunities.org/def/concept/finance/sercop/objective/102,Amazon,-129.93,0,internal hard drive refund,Information Communication Technology,270000
South Lakeland District Council,http://opendatacommunities.org/id/district-council/south-lakeland,30/11/2014,31/10/2014,Financial Services,Central Services,http://opendatacommunities.org/def/concept/finance/sercop/objective/102,Association of Accounting Technicians,136.00,0,AAT Membership: GD,Financial Services,200000
South Lakeland District Council,http://opendatacommunities.org/id/district-council/south-lakeland,30/11/2014,31/10/2014,Economic Development,Cultural Environmental Regulatory & Planning Services,http://opendatacommunities.org/def/concept/finance/sercop/objective/104,Newsco Insider,1000.00,0,Companies Database,Environmental Services,180000
South Lakeland District Council,http://opendatacommunities.org/id/district-council/south-lakeland,30/11/2014,31/10/2014,Information Services,Central Services,http://opendatacommunities.org/def/concept/finance/sercop/objective/102,George Payne Irish Bar,8.90,0,Food,Education,170000
South Lakeland District Council,http://opendatacommunities.org/id/district-council/south-lakeland,30/11/2014,31/10/2014,Human Resources,Central Services,http://opendatacommunities.org/def/concept/finance/sercop/objective/102,West Coast Trains,8.00,0,Rail,Education,170000
South Lakeland District Council,http://opendatacommunities.org/id/district-council/south-lakeland,30/11/2014,03/11/2014,Customer Services,Central Services,http://opendatacommunities.org/def/concept/finance/sercop/objective/102,The Works,15.00,0,stationery,Stationery,340000
South Lakeland District Council,http://opendatacommunities.org/id/district-council/south-lakeland,30/11/2014,04/11/2014,Cemeteries Office,Central Services,http://opendatacommunities.org/def/concept/finance/sercop/objective/102,CIEH,340.00,0,Training,Education,170000
South Lakeland District Council,http://opendatacommunities.org/id/district-council/south-lakeland,30/11/2014,04/11/2014,Cemeteries Office,Central Services,http://opendatacommunities.org/def/concept/finance/sercop/objective/102,CIEH,105.00,0,Training,Education,170000
South Lakeland District Council,http://opendatacommunities.org/id/district-council/south-lakeland,30/11/2014,04/11/2014,Homelessness,Housing Services,http://opendatacommunities.org/def/concept/finance/sercop/objective/108,Aireys of Kendal,25.25,0,Pre paid electricity supplied,Social Community Care Supplies & Services,410000
South Lakeland District Council,http://opendatacommunities.org/id/district-council/south-lakeland,30/11/2014,04/11/2014,Revenues and Benefits,Central Services,http://opendatacommunities.org/def/concept/finance/sercop/objective/102,Northern Rail,31.50,0,E Conway Oxe - Leeds 10.11.14,Public Transport,360000
South Lakeland District Council,http://opendatacommunities.org/id/district-council/south-lakeland,30/11/2014,05/11/2014,Revenues and Benefits,Central Services,http://opendatacommunities.org/def/concept/finance/sercop/objective/102,Northern Rail,35.90,0,R Rooke Train Ticket Ulv - Mnchester,Public Transport,360000
South Lakeland District Council,http://opendatacommunities.org/id/district-council/south-lakeland,30/11/2014,06/11/2014,Cemeteries Office,Central Services,http://opendatacommunities.org/def/concept/finance/sercop/objective/102,CIEH,170.00,0,Training,Education,170000
South Lakeland District Council,http://opendatacommunities.org/id/district-council/south-lakeland,30/11/2014,06/11/2014,Cemeteries Office,Central Services,http://opendatacommunities.org/def/concept/finance/sercop/objective/102,Trainline,91.60,0,Rail fare,Education,170000
South Lakeland District Council,http://opendatacommunities.org/id/district-council/south-lakeland,30/11/2014,06/11/2014,Homelessness,Housing Services,http://opendatacommunities.org/def/concept/finance/sercop/objective/108,Right to Work,25.00,0,Bulky waste collection 14 Beast Banks,Social Community Care Supplies & Services,410000
South Lakeland District Council,http://opendatacommunities.org/id/district-council/south-lakeland,30/11/2014,06/11/2014,Homelessness,Housing Services,http://opendatacommunities.org/def/concept/finance/sercop/objective/108,Right to Work,73.00,0,Bulky waste collection 14 Beast Banks,Social Community Care Supplies & Services,410000
South Lakeland District Council,http://opendatacommunities.org/id/district-council/south-lakeland,30/11/2014,06/11/2014,Homelessness,Housing Services,http://opendatacommunities.org/def/concept/finance/sercop/objective/108,Right to Work,33.00,0,Bulky waste collection 14 Beast Banks,Social Community Care Supplies & Services,410000
South Lakeland District Council,http://opendatacommunities.org/id/district-council/south-lakeland,30/11/2014,06/11/2014,Development Implementation,Central Services,http://opendatacommunities.org/def/concept/finance/sercop/objective/102,Martin McColl,2.00,0,Westmorland Gazette x2,Stationery,340000
South Lakeland District Council,http://opendatacommunities.org/id/district-council/south-lakeland,30/11/2014,06/11/2014,Car Parks,Highways & Transport Services,http://opendatacommunities.org/def/concept/finance/sercop/objective/107,Trainline,98.94,0,Train Tickets,Public Transport,360000
South Lakeland District Council,http://opendatacommunities.org/id/district-council/south-lakeland,30/11/2014,07/11/2014,Financial Services,Central Services,http://opendatacommunities.org/def/concept/finance/sercop/objective/102,LexisNexis,119.95,0,Tolleys VAT Guide 2014,Stationery,340000
South Lakeland District Council,http://opendatacommunities.org/id/district-council/south-lakeland,30/11/2014,07/11/2014,Financial Services,Central Services,http://opendatacommunities.org/def/concept/finance/sercop/objective/102,ACCA,211.00,0,ACCA Membership: CR,Financial Services,200000
South Lakeland District Council,http://opendatacommunities.org/id/district-council/south-lakeland,30/11/2014,07/11/2014,Economic Development,Cultural Environmental Regulatory & Planning Services,http://opendatacommunities.org/def/concept/finance/sercop/objective/104,Iceland,3.70,0,Sedbergh Hub Opening Expenses,Environmental Services,180000
South Lakeland District Council,http://opendatacommunities.org/id/district-council/south-lakeland,30/11/2014,07/11/2014,Economic Development,Cultural Environmental Regulatory & Planning Services,http://opendatacommunities.org/def/concept/finance/sercop/objective/104,W Boyes & Co Ltd,2.34,0,Sedbergh Hub Opening Expenses,Environmental Services,180000
South Lakeland District Council,http://opendatacommunities.org/id/district-council/south-lakeland,30/11/2014,10/11/2014,Management Team,Central Services,http://opendatacommunities.org/def/concept/finance/sercop/objective/102,EUROSTAR,274.00,0,Return Train Travel,Public Transport,360000
South Lakeland District Council,http://opendatacommunities.org/id/district-council/south-lakeland,30/11/2014,10/11/2014,Town View Field Hostel,Housing Services,http://opendatacommunities.org/def/concept/finance/sercop/objective/108,Amazon,-3.90,0,Returned - damaged - 1 x pack of 4 cups refunded,Domestic Goods,160000
South Lakeland District Council,http://opendatacommunities.org/id/district-council/south-lakeland,30/11/2014,10/11/2014,Development Implementation,Central Services,http://opendatacommunities.org/def/concept/finance/sercop/objective/102,RICS,506.00,0,Membership Fees CL,Education,170000
South Lakeland District Council,http://opendatacommunities.org/id/district-council/south-lakeland,30/11/2014,11/11/2014,Transport,Cultural Environmental Regulatory & Planning Services,http://opendatacommunities.org/def/concept/finance/sercop/objective/104,Brammer,352.05,0,Vehicle parts,Vehicle Management,380000
South Lakeland District Council,http://opendatacommunities.org/id/district-council/south-lakeland,30/11/2014,11/11/2014,Customer Services,Central Services,http://opendatacommunities.org/def/concept/finance/sercop/objective/102,Gates,33.10,0,Travel,Human Resources,260000
South Lakeland District Council,http://opendatacommunities.org/id/district-council/south-lakeland,30/11/2014,12/11/2014,Development Implementation,Central Services,http://opendatacommunities.org/def/concept/finance/sercop/objective/102,IED,130.00,0,Membership Fees JG,Education,170000
South Lakeland District Council,http://opendatacommunities.org/id/district-council/south-lakeland,30/11/2014,12/11/2014,Customer Services,Central Services,http://opendatacommunities.org/def/concept/finance/sercop/objective/102,Open Forum ,195.00,0,Conference,Education,170000
South Lakeland District Council,http://opendatacommunities.org/id/district-council/south-lakeland,30/11/2014,12/11/2014,Car Park Enforcement,Highways & Transport Services,http://opendatacommunities.org/def/concept/finance/sercop/objective/107,Sports Direct,39.99,0,1xWork Boots for Civil Enforcement Officer,Clothing,140000
South Lakeland District Council,http://opendatacommunities.org/id/district-council/south-lakeland,30/11/2014,13/11/2014,ICT Group,Central Services,http://opendatacommunities.org/def/concept/finance/sercop/objective/102,CCLonline,51.13,0,4* Lenovo USB ethernet adapters,Information Communication Technology,270000
South Lakeland District Council,http://opendatacommunities.org/id/district-council/south-lakeland,30/11/2014,13/11/2014,Development Implementation,Central Services,http://opendatacommunities.org/def/concept/finance/sercop/objective/102,Martin McColl,2.00,0,Westmorland Gazette x2,Stationery,340000
South Lakeland District Council,http://opendatacommunities.org/id/district-council/south-lakeland,30/11/2014,13/11/2014,Economic Development,Cultural Environmental Regulatory & Planning Services,http://opendatacommunities.org/def/concept/finance/sercop/objective/104,Fotolia,16.32,0,Photo credit purchase,Environmental Services,180000
South Lakeland District Council,http://opendatacommunities.org/id/district-council/south-lakeland,30/11/2014,14/11/2014,Economic Development,Cultural Environmental Regulatory & Planning Services,http://opendatacommunities.org/def/concept/finance/sercop/objective/104,Home Bargains,5.73,0,Supplies for Sedbergh Hub Opening Event,Environmental Services,180000
South Lakeland District Council,http://opendatacommunities.org/id/district-council/south-lakeland,30/11/2014,14/11/2014,"Noise, Air and Water Pollution",Cultural Environmental Regulatory & Planning Services,http://opendatacommunities.org/def/concept/finance/sercop/objective/104,Argos,84.68,0,Equipment,Highway Equipment & Materials,230000
South Lakeland District Council,http://opendatacommunities.org/id/district-council/south-lakeland,30/11/2014,17/11/2014,ICT Group,Central Services,http://opendatacommunities.org/def/concept/finance/sercop/objective/102,Lindy,23.29,0,HDMI Cables,Information Communication Technology,270000
South Lakeland District Council,http://opendatacommunities.org/id/district-council/south-lakeland,30/11/2014,17/11/2014,Parks and Open Spaces,Cultural Environmental Regulatory & Planning Services,http://opendatacommunities.org/def/concept/finance/sercop/objective/104,Geo. Barker,10.00,0,Timber 21 feet x 6'' x 1'',Sports & Playground Equipment & Maintenance,330000
South Lakeland District Council,http://opendatacommunities.org/id/district-council/south-lakeland,30/11/2014,18/11/2014,Parks and Open Spaces,Cultural Environmental Regulatory & Planning Services,http://opendatacommunities.org/def/concept/finance/sercop/objective/104,Goe. Barker,7.00,0,20 x nuts & bolts,Sports & Playground Equipment & Maintenance,330000
South Lakeland District Council,http://opendatacommunities.org/id/district-council/south-lakeland,30/11/2014,19/11/2014,Lake Wardens,Cultural Environmental Regulatory & Planning Services,http://opendatacommunities.org/def/concept/finance/sercop/objective/104,Jones and Son,262.95,0,Defender 8 wide pigeon spikes,Street & Traffic Management,350000
South Lakeland District Council,http://opendatacommunities.org/id/district-council/south-lakeland,30/11/2014,19/11/2014,Lake Wardens,Cultural Environmental Regulatory & Planning Services,http://opendatacommunities.org/def/concept/finance/sercop/objective/104,DVLA,352.50,0,Vehicle Excise Duty Tractor,Vehicle Management,380000
South Lakeland District Council,http://opendatacommunities.org/id/district-council/south-lakeland,30/11/2014,19/11/2014,Car Parks,Highways & Transport Services,http://opendatacommunities.org/def/concept/finance/sercop/objective/107,Sports Direct,111.96,0,5x Outdoor Jackets cash collectors,Clothing,140000
South Lakeland District Council,http://opendatacommunities.org/id/district-council/south-lakeland,30/11/2014,19/11/2014,Car Parks,Highways & Transport Services,http://opendatacommunities.org/def/concept/finance/sercop/objective/107,staionary office & supply store,168.00,0,Bulk Bank Coin Bags Cash collectors,Highway Equipment & Materials,230000
South Lakeland District Council,http://opendatacommunities.org/id/district-council/south-lakeland,30/11/2014,19/11/2014,ICT Group,Central Services,http://opendatacommunities.org/def/concept/finance/sercop/objective/102,Amazon,80.80,0,HDMI to DVI for Tablets,Information Communication Technology,270000
South Lakeland District Council,http://opendatacommunities.org/id/district-council/south-lakeland,30/11/2014,19/11/2014,"Noise, Air and Water Pollution",Cultural Environmental Regulatory & Planning Services,http://opendatacommunities.org/def/concept/finance/sercop/objective/104,Amazon,9.70,0,Equipment,Environmental Services,180000
South Lakeland District Council,http://opendatacommunities.org/id/district-council/south-lakeland,30/11/2014,20/11/2014,Partnerships and Communities,Cultural Environmental Regulatory & Planning Services,http://opendatacommunities.org/def/concept/finance/sercop/objective/104,Rymans,4.31,0,Stationery,Catering,110000
South Lakeland District Council,http://opendatacommunities.org/id/district-council/south-lakeland,30/11/2014,20/11/2014,Partnerships and Communities,Cultural Environmental Regulatory & Planning Services,http://opendatacommunities.org/def/concept/finance/sercop/objective/104,EH Booth & Co,1.67,0,Refreshments,Catering,110000
South Lakeland District Council,http://opendatacommunities.org/id/district-council/south-lakeland,30/11/2014,20/11/2014,Partnerships and Communities,Cultural Environmental Regulatory & Planning Services,http://opendatacommunities.org/def/concept/finance/sercop/objective/104,W Boyes & Co. Ltd,3.53,0,Refreshments,Catering,110000
South Lakeland District Council,http://opendatacommunities.org/id/district-council/south-lakeland,30/11/2014,20/11/2014,Partnerships and Communities,Cultural Environmental Regulatory & Planning Services,http://opendatacommunities.org/def/concept/finance/sercop/objective/104,EH Booth & Co,0.49,0,Refreshments,Catering,110000
South Lakeland District Council,http://opendatacommunities.org/id/district-council/south-lakeland,30/11/2014,21/11/2014,Lake Wardens,Cultural Environmental Regulatory & Planning Services,http://opendatacommunities.org/def/concept/finance/sercop/objective/104,Marinewear LTD,156.48,0,Sabtak 750xl white 290ml sealant Lake,Street & Traffic Management,350000
South Lakeland District Council,http://opendatacommunities.org/id/district-council/south-lakeland,30/11/2014,21/11/2014,ICT Group,Central Services,http://opendatacommunities.org/def/concept/finance/sercop/objective/102,Amazon,30.00,0,HDMI to VGA (None VAT Seller),Information Communication Technology,270000
South Lakeland District Council,http://opendatacommunities.org/id/district-council/south-lakeland,30/11/2014,21/11/2014,ICT Group,Central Services,http://opendatacommunities.org/def/concept/finance/sercop/objective/102,TV Licensing,145.50,0,TV License (Non VAT),Information Communication Technology,270000
South Lakeland District Council,http://opendatacommunities.org/id/district-council/south-lakeland,30/11/2014,24/11/2014,Financial Services,Central Services,http://opendatacommunities.org/def/concept/finance/sercop/objective/102,Virgin Trains,135.20,0,Train ticket to Birmingham for CIPS training,Public Transport,360000
South Lakeland District Council,http://opendatacommunities.org/id/district-council/south-lakeland,30/11/2014,24/11/2014,Coronation Hall,Cultural Environmental Regulatory & Planning Services,http://opendatacommunities.org/def/concept/finance/sercop/objective/104,Caterkwik,600.00,0,Bar Fridges,Highway Equipment & Materials,230000
South Lakeland District Council,http://opendatacommunities.org/id/district-council/south-lakeland,30/11/2014,24/11/2014,Policy & Partnerships,Central Services,http://opendatacommunities.org/def/concept/finance/sercop/objective/102,Packt Publishing,11.90,0,Using OpenRefine e-book,Public Transport,360000
South Lakeland District Council,http://opendatacommunities.org/id/district-council/south-lakeland,30/11/2014,24/11/2014,Financial Services,Central Services,http://opendatacommunities.org/def/concept/finance/sercop/objective/102,CIPFA,478.75,0,Accounting Code of Practice and Disclosure Checklist,Stationery,340000
South Lakeland District Council,http://opendatacommunities.org/id/district-council/south-lakeland,30/11/2014,24/11/2014,Financial Services,Central Services,http://opendatacommunities.org/def/concept/finance/sercop/objective/102,CIPFA,310.00,0,CIPFA Membership 2015: HS,Financial Services,200000
South Lakeland District Council,http://opendatacommunities.org/id/district-council/south-lakeland,30/11/2014,24/11/2014,Financial Services,Central Services,http://opendatacommunities.org/def/concept/finance/sercop/objective/102,CIPFA,310.00,0,CIPFA Membership 2015: PN,Financial Services,200000
South Lakeland District Council,http://opendatacommunities.org/id/district-council/south-lakeland,30/11/2014,24/11/2014,Homelessness,Housing Services,http://opendatacommunities.org/def/concept/finance/sercop/objective/108,Right to Work,33.00,0,Removal of furniture 14 Beast Banks Kendal,Social Community Care Supplies & Services,410000
South Lakeland District Council,http://opendatacommunities.org/id/district-council/south-lakeland,30/11/2014,24/11/2014,Homelessness,Housing Services,http://opendatacommunities.org/def/concept/finance/sercop/objective/108,Right to Work,33.00,0,Removal of furniture 14 Beast Banks Kendal,Social Community Care Supplies & Services,410000
South Lakeland District Council,http://opendatacommunities.org/id/district-council/south-lakeland,30/11/2014,24/11/2014,Town View Field Hostel,Housing Services,http://opendatacommunities.org/def/concept/finance/sercop/objective/108,Amazon/clickadeal,15.18,0,2 x Personal Alarm H&S,Domestic Goods,160000
South Lakeland District Council,http://opendatacommunities.org/id/district-council/south-lakeland,30/11/2014,24/11/2014,Parks and Open Spaces,Cultural Environmental Regulatory & Planning Services,http://opendatacommunities.org/def/concept/finance/sercop/objective/104,DE Signs,136.00,0,Banner for Millerground Project,Horticultural,240000
South Lakeland District Council,http://opendatacommunities.org/id/district-council/south-lakeland,30/11/2014,25/11/2014,Policy & Partnerships,Central Services,http://opendatacommunities.org/def/concept/finance/sercop/objective/102,Virgin,94.50,0,Return Train Kendal - Euston,Public Transport,360000
South Lakeland District Council,http://opendatacommunities.org/id/district-council/south-lakeland,30/11/2014,25/11/2014,Policy & Partnerships,Central Services,http://opendatacommunities.org/def/concept/finance/sercop/objective/102,Travelodge,332.46,0,Overnight Accommodation,Public Transport,360000
South Lakeland District Council,http://opendatacommunities.org/id/district-council/south-lakeland,30/11/2014,25/11/2014,Research and Intelligence,Central Services,http://opendatacommunities.org/def/concept/finance/sercop/objective/102,Virgin,16.80,0,Train Travel,Public Transport,360000
South Lakeland District Council,http://opendatacommunities.org/id/district-council/south-lakeland,30/11/2014,25/11/2014,Economic Development,Cultural Environmental Regulatory & Planning Services,http://opendatacommunities.org/def/concept/finance/sercop/objective/104,Cumbria Chamber of Commerce,50.00,0,Chamber Christmas Lunch x2 delegates,Environmental Services,180000
South Lakeland District Council,http://opendatacommunities.org/id/district-council/south-lakeland,30/11/2014,26/11/2014,Lake Windermere,,,LDNPA,385.00,0,Planning App Ferry Nab,Financial Services,200000
South Lakeland District Council,http://opendatacommunities.org/id/district-council/south-lakeland,30/11/2014,26/11/2014,Lake Windermere,,,LDNPA,195.00,0,Planning App Ferry Nab,Financial Services,200000
South Lakeland District Council,http://opendatacommunities.org/id/district-council/south-lakeland,30/11/2014,26/11/2014,ICT Group,Central Services,http://opendatacommunities.org/def/concept/finance/sercop/objective/102,Amazon,40.41,0,Mini HDMI to VGA (Non VAT Seller),Information Communication Technology,270000
South Lakeland District Council,http://opendatacommunities.org/id/district-council/south-lakeland,30/11/2014,26/11/2014,Cemeteries Office,Central Services,http://opendatacommunities.org/def/concept/finance/sercop/objective/102,CIEH,-50.00,0,Training,Education,170000
South Lakeland District Council,http://opendatacommunities.org/id/district-council/south-lakeland,30/11/2014,26/11/2014,Cemeteries Office,Central Services,http://opendatacommunities.org/def/concept/finance/sercop/objective/102,CIEH,50.00,0,Training,Education,170000
South Lakeland District Council,http://opendatacommunities.org/id/district-council/south-lakeland,30/11/2014,27/11/2014,Kendal Town Hall,Cultural Environmental Regulatory & Planning Services,http://opendatacommunities.org/def/concept/finance/sercop/objective/104,Boyes,5.38,1.07,Sew n Stick Velcro For Chairs Town Hall,Highway Equipment & Materials,230000
South Lakeland District Council,http://opendatacommunities.org/id/district-council/south-lakeland,30/11/2014,27/11/2014,ICT Group,Central Services,http://opendatacommunities.org/def/concept/finance/sercop/objective/102,Lindy,-7.99,0,Refund for postage as not delivered,Information Communication Technology,270000
South Lakeland District Council,http://opendatacommunities.org/id/district-council/south-lakeland,30/11/2014,27/11/2014,ICT Group,Central Services,http://opendatacommunities.org/def/concept/finance/sercop/objective/102,Esso,37.60,0,Petrol Info@work User group,Education,170000
South Lakeland District Council,http://opendatacommunities.org/id/district-council/south-lakeland,30/11/2014,27/11/2014,Town View Field Hostel,Housing Services,http://opendatacommunities.org/def/concept/finance/sercop/objective/108,Amazon/displaypro,18.63,0,3 x Leaflet display,Domestic Goods,160000
South Lakeland District Council,http://opendatacommunities.org/id/district-council/south-lakeland,30/11/2014,27/11/2014,"Noise, Air and Water Pollution",Cultural Environmental Regulatory & Planning Services,http://opendatacommunities.org/def/concept/finance/sercop/objective/104,Argos,15.82,0,Equipment,Highway Equipment & Materials,230000
South Lakeland District Council,http://opendatacommunities.org/id/district-council/south-lakeland,30/11/2014,27/11/2014,"Noise, Air and Water Pollution",Cultural Environmental Regulatory & Planning Services,http://opendatacommunities.org/def/concept/finance/sercop/objective/104,Argos,63.32,0,Equipment,Highway Equipment & Materials,230000
South Lakeland District Council,http://opendatacommunities.org/id/district-council/south-lakeland,30/11/2014,27/11/2014,"Noise, Air and Water Pollution",Cultural Environmental Regulatory & Planning Services,http://opendatacommunities.org/def/concept/finance/sercop/objective/104,Argos,63.32,0,Equipment,Highway Equipment & Materials,230000
South Lakeland District Council,http://opendatacommunities.org/id/district-council/south-lakeland,30/11/2014,27/11/2014,"Noise, Air and Water Pollution",Cultural Environmental Regulatory & Planning Services,http://opendatacommunities.org/def/concept/finance/sercop/objective/104,Argos,63.32,0,Equipment,Highway Equipment & Materials,230000
South Lakeland District Council,http://opendatacommunities.org/id/district-council/south-lakeland,30/11/2014,28/11/2014,Transport,Cultural Environmental Regulatory & Planning Services,http://opendatacommunities.org/def/concept/finance/sercop/objective/104,Brammer,258.34,0,Vehicle parts,Vehicle Management,380000
South Lakeland District Council,http://opendatacommunities.org/id/district-council/south-lakeland,30/11/2014,01/12/2014,Policy & Partnerships,Central Services,http://opendatacommunities.org/def/concept/finance/sercop/objective/102,Wagamamma,10.39,0,Evening meal,Public Transport,360000
South Lakeland District Council,http://opendatacommunities.org/id/district-council/south-lakeland,30/11/2014,01/12/2014,Policy & Partnerships,Central Services,http://opendatacommunities.org/def/concept/finance/sercop/objective/102,LUL,10.00,0,London Underground - Oyster Top Up,Public Transport,360000
South Lakeland District Council,http://opendatacommunities.org/id/district-council/south-lakeland,30/11/2014,01/12/2014,Building Control,Cultural Environmental Regulatory & Planning Services,http://opendatacommunities.org/def/concept/finance/sercop/objective/104,Argos,31.60,0,8 Smartphone Charger USB,"Works - Construction, Repair & Maintenance",390000
South Lakeland District Council,http://opendatacommunities.org/id/district-council/south-lakeland,30/11/2014,01/12/2014,Parks and Open Spaces,Cultural Environmental Regulatory & Planning Services,http://opendatacommunities.org/def/concept/finance/sercop/objective/104,lakeland supplies,75.70,0,"nuts, bolts, griinder discs, drill bits",Sports & Playground Equipment & Maintenance,330000
South Lakeland District Council,http://opendatacommunities.org/id/district-council/south-lakeland,30/11/2014,02/12/2014,Car Park Enforcement,Highways & Transport Services,http://opendatacommunities.org/def/concept/finance/sercop/objective/107,Sports Direct,29.16,5.83,1X pair workboots civil enforcement officer,Clothing,140000
South Lakeland District Council,http://opendatacommunities.org/id/district-council/south-lakeland,30/11/2014,02/12/2014,Car Parks,Highways & Transport Services,http://opendatacommunities.org/def/concept/finance/sercop/objective/107,Sports Direct,41.66,8.33,1x oudoor Jacket cleaner multi storey,Clothing,140000
South Lakeland District Council,http://opendatacommunities.org/id/district-council/south-lakeland,30/11/2014,02/12/2014,Policy & Partnerships,Central Services,http://opendatacommunities.org/def/concept/finance/sercop/objective/102,Byron Burgers,10.42,0,Evening meal,Public Transport,360000
South Lakeland District Council,http://opendatacommunities.org/id/district-council/south-lakeland,30/11/2014,02/12/2014,Development Implementation,Central Services,http://opendatacommunities.org/def/concept/finance/sercop/objective/102,Martin McColl,1.00,0,Westmorland Gazette   ,Stationery,340000
South Lakeland District Council,http://opendatacommunities.org/id/district-council/south-lakeland,30/11/2014,02/12/2014,Homelessness,Housing Services,http://opendatacommunities.org/def/concept/finance/sercop/objective/108,Eon,0.96,0,Electricity for communal areas - 14 Beast Banks,Social Community Care Supplies & Services,410000
South Lakeland District Council,http://opendatacommunities.org/id/district-council/south-lakeland,30/11/2014,02/12/2014,Town View Field Hostel,Housing Services,http://opendatacommunities.org/def/concept/finance/sercop/objective/108,Argos,51.98,0,Desk Lamp and Iron,Domestic Goods,160000
South Lakeland District Council,http://opendatacommunities.org/id/district-council/south-lakeland,30/11/2014,02/12/2014,Town View Field Hostel,Housing Services,http://opendatacommunities.org/def/concept/finance/sercop/objective/108,Argos,128.94,0,Fridge + delivery,Domestic Goods,160000
South Lakeland District Council,http://opendatacommunities.org/id/district-council/south-lakeland,30/11/2014,03/12/2014,Policy & Partnerships,Central Services,http://opendatacommunities.org/def/concept/finance/sercop/objective/102,Soho Diner,10.42,0,Evening meal,Public Transport,360000
South Lakeland District Council,http://opendatacommunities.org/id/district-council/south-lakeland,30/11/2014,03/12/2014,Economic Development,Cultural Environmental Regulatory & Planning Services,http://opendatacommunities.org/def/concept/finance/sercop/objective/104,Home Bargains,106.53,0,Lights for Christmas Market,Environmental Services,180000
South Lakeland District Council,http://opendatacommunities.org/id/district-council/south-lakeland,30/11/2014,04/12/2014,Coronation Hall,Cultural Environmental Regulatory & Planning Services,http://opendatacommunities.org/def/concept/finance/sercop/objective/104,Edmundsons,121.00,0,Coro Light Bulbs (Golf Ball Type),Highway Equipment & Materials,230000
South Lakeland District Council,http://opendatacommunities.org/id/district-council/south-lakeland,30/11/2014,04/12/2014,Policy & Partnerships,Central Services,http://opendatacommunities.org/def/concept/finance/sercop/objective/102,Leon,8.75,0,Evening meal,Public Transport,360000
South Lakeland District Council,http://opendatacommunities.org/id/district-council/south-lakeland,30/11/2014,04/12/2014,Development Implementation,Central Services,http://opendatacommunities.org/def/concept/finance/sercop/objective/102,Martin McColl,2.00,0,Westmorland Gazette x2,Stationery,340000
South Lakeland District Council,http://opendatacommunities.org/id/district-council/south-lakeland,30/11/2014,05/12/2014,Transport,Cultural Environmental Regulatory & Planning Services,http://opendatacommunities.org/def/concept/finance/sercop/objective/104,VOSA,500.00,0,Vehicle testing,Vehicle Management,380000
South Lakeland District Council,http://opendatacommunities.org/id/district-council/south-lakeland,30/11/2014,05/12/2014,Homelessness,Housing Services,http://opendatacommunities.org/def/concept/finance/sercop/objective/108,Airey's of Kendal,50.25,0,Gas & electricity meter payment for social lettings,Social Community Care Supplies & Services,410000
South Lakeland District Council,http://opendatacommunities.org/id/district-council/south-lakeland,30/11/2014,09/12/2014,Financial Services,Central Services,http://opendatacommunities.org/def/concept/finance/sercop/objective/102,CIPFA,310.00,0,CIPFA Membership 2015: RP,Financial Services,200000
South Lakeland District Council,http://opendatacommunities.org/id/district-council/south-lakeland,30/11/2014,09/12/2014,ICT Group,Central Services,http://opendatacommunities.org/def/concept/finance/sercop/objective/102,Amazon,94.99,0,Wireless Keyboards & Mice,Information Communication Technology,270000
South Lakeland District Council,http://opendatacommunities.org/id/district-council/south-lakeland,30/11/2014,09/12/2014,Economic Development,Cultural Environmental Regulatory & Planning Services,http://opendatacommunities.org/def/concept/finance/sercop/objective/104,Home Bargains,13.63,0,Refreshments for performers at Christmas Market,Environmental Services,180000
South Lakeland District Council,http://opendatacommunities.org/id/district-council/south-lakeland,30/11/2014,09/12/2014,Parks and Open Spaces,Cultural Environmental Regulatory & Planning Services,http://opendatacommunities.org/def/concept/finance/sercop/objective/104,lakeland supplies,91.60,0,"sealant, rivets,blades,tape",Sports & Playground Equipment & Maintenance,330000
South Lakeland District Council,http://opendatacommunities.org/id/district-council/south-lakeland,30/11/2014,10/12/2014,Economic Development,Cultural Environmental Regulatory & Planning Services,http://opendatacommunities.org/def/concept/finance/sercop/objective/104,W H Smith,3.44,0,Ticket book for Ice Rink during Festive Fortnight,Environmental Services,180000
South Lakeland District Council,http://opendatacommunities.org/id/district-council/south-lakeland,30/11/2014,10/12/2014,Economic Development,Cultural Environmental Regulatory & Planning Services,http://opendatacommunities.org/def/concept/finance/sercop/objective/104,Middletons,4.95,0,Cable clips for Christmas Market,Environmental Services,180000
South Lakeland District Council,http://opendatacommunities.org/id/district-council/south-lakeland,30/11/2014,11/12/2014,Coronation Hall,Cultural Environmental Regulatory & Planning Services,http://opendatacommunities.org/def/concept/finance/sercop/objective/104,Bardsea Leisure,263.00,0,Cables for Christmas Market,Highway Equipment & Materials,230000
South Lakeland District Council,http://opendatacommunities.org/id/district-council/south-lakeland,30/11/2014,11/12/2014,Lake Windermere,,,Trainline,43.45,0,Train Tickets Ferry Nab Capital,Financial Services,200000
South Lakeland District Council,http://opendatacommunities.org/id/district-council/south-lakeland,30/11/2014,11/12/2014,Lake Windermere,,,FlyBe,149.98,0,Plane Tickets Ferry Nab Capital,Financial Services,200000
South Lakeland District Council,http://opendatacommunities.org/id/district-council/south-lakeland,30/11/2014,11/12/2014,Economic Development,Cultural Environmental Regulatory & Planning Services,http://opendatacommunities.org/def/concept/finance/sercop/objective/104,Callender Caravans,144.00,0,Cables for Christmas Market,Environmental Services,180000
South Lakeland District Council,http://opendatacommunities.org/id/district-council/south-lakeland,30/11/2014,11/12/2014,Economic Development,Cultural Environmental Regulatory & Planning Services,http://opendatacommunities.org/def/concept/finance/sercop/objective/104,Boots,6.99,0,First Aid Kit,Environmental Services,180000
South Lakeland District Council,http://opendatacommunities.org/id/district-council/south-lakeland,30/11/2014,11/12/2014,Homelessness,Housing Services,http://opendatacommunities.org/def/concept/finance/sercop/objective/108,Aireys of kendal,20.25,0,Pre paid electricity Flat 1 13 New Rd Kendal,Social Community Care Supplies & Services,410000
South Lakeland District Council,http://opendatacommunities.org/id/district-council/south-lakeland,30/11/2014,11/12/2014,Homelessness,Housing Services,http://opendatacommunities.org/def/concept/finance/sercop/objective/108,W Boyes,2.50,0,Light Bulbs for Flat 1 13 New Rd Kendal,Social Community Care Supplies & Services,410000
South Lakeland District Council,http://opendatacommunities.org/id/district-council/south-lakeland,30/11/2014,11/12/2014,Homelessness,Housing Services,http://opendatacommunities.org/def/concept/finance/sercop/objective/108,Aireys of kendal,20.25,0,Pre paid electricity Flat 1 13 New Rd Kendal,Social Community Care Supplies & Services,410000
South Lakeland District Council,http://opendatacommunities.org/id/district-council/south-lakeland,30/11/2014,11/12/2014,Homelessness,Housing Services,http://opendatacommunities.org/def/concept/finance/sercop/objective/108,W Boyes,2.50,0,Light Bulbs for Flat 1 13 New Rd Kendal,Social Community Care Supplies & Services,410000
South Lakeland District Council,http://opendatacommunities.org/id/district-council/south-lakeland,30/11/2014,11/12/2014,Cemeteries Office,Central Services,http://opendatacommunities.org/def/concept/finance/sercop/objective/102,Clove,238.34,0,Tablet case,Information Communication Technology,270000
